[Event "*** Titled Tuesday Blitz"]
[Site "Chess.com"]
[Date "2021.03.30"]
[Round "3"]
[White "xberli"]
[Black "LEGENYA1998"]
[Result "1-0"]
[WhiteElo "2515"]
[BlackElo "2254"]
[TimeControl "180+1"]
[EndTime "10:28:02 PDT"]
[Termination "xberli won on time"]

1. d4 {[%clk 0:03:00.9]} 1... Nf6 {[%clk 0:02:49.7]} 2. Nc3 {[%clk 0:02:59.8]}
2... e6 {[%clk 0:02:42.7]} 3. Bf4 {[%clk 0:02:53.1]} 3... Bb4 {[%clk 0:02:37.7]}
4. a3 {[%clk 0:02:50]} 4... Bxc3+ {[%clk 0:02:34.8]} 5. bxc3 {[%clk 0:02:50.9]}
5... b6 {[%clk 0:02:34.9]} 6. f3 {[%clk 0:02:33.5]} 6... Bb7 {[%clk 0:02:32.9]}
7. e4 {[%clk 0:02:29.2]} 7... d6 {[%clk 0:02:33]} 8. Bd3 {[%clk 0:02:27.2]} 8...
O-O {[%clk 0:02:32]} 9. Ne2 {[%clk 0:02:25.4]} 9... Nbd7 {[%clk 0:02:29.7]} 10.
Qd2 {[%clk 0:02:20.6]} 10... e5 {[%clk 0:02:27]} 11. Bg5 {[%clk 0:02:15.9]}
11... d5 {[%clk 0:02:00.8]} 12. exd5 {[%clk 0:02:11.7]} 12... Bxd5 {[%clk
0:01:59.9]} 13. O-O {[%clk 0:02:07.9]} 13... Re8 {[%clk 0:01:36.3]} 14. Ng3
{[%clk 0:01:49.5]} 14... Qc8 {[%clk 0:01:24.4]} 15. Rae1 {[%clk 0:01:43]} 15...
exd4 {[%clk 0:01:17]} 16. cxd4 {[%clk 0:01:41.9]} 16... c5 {[%clk 0:01:13]} 17.
c4 {[%clk 0:01:31.2]} 17... Bb7 {[%clk 0:01:12.1]} 18. d5 {[%clk 0:01:31]} 18...
Qc7 {[%clk 0:00:55.2]} 19. f4 {[%clk 0:01:22.8]} 19... h6 {[%clk 0:00:38.7]} 20.
Bh4 {[%clk 0:01:16.1]} 20... b5 {[%clk 0:00:31.5]} 21. cxb5 {[%clk 0:01:07.9]}
21... c4 {[%clk 0:00:25.8]} 22. Bc2 {[%clk 0:00:59.8]} 22... Nxd5 {[%clk
0:00:23.2]} 23. Ne4 {[%clk 0:00:45.7]} 23... Qb6+ {[%clk 0:00:20.6]} 24. Bf2
{[%clk 0:00:41.5]} 24... Qxb5 {[%clk 0:00:19.3]} 25. f5 {[%clk 0:00:37.6]} 25...
Qc6 {[%clk 0:00:16]} 26. Bd4 {[%clk 0:00:33.5]} 26... N7f6 {[%clk 0:00:15.6]}
27. Qf2 {[%clk 0:00:29.3]} 27... Nxe4 {[%clk 0:00:08.6]} 28. Bxe4 {[%clk
0:00:27.3]} 28... Rad8 {[%clk 0:00:08.6]} 29. f6 {[%clk 0:00:23.9]} 29... Qd7
{[%clk 0:00:04]} 30. fxg7 {[%clk 0:00:21]} 1-0

[Event "*** Titled Tuesday Blitz"]
[Site "Chess.com"]
[Date "2021.03.30"]
[Round "3"]
[White "bolence16"]
[Black "enriquetejedor"]
[Result "0-1"]
[WhiteElo "2418"]
[BlackElo "2612"]
[TimeControl "180+1"]
[EndTime "10:28:03 PDT"]
[Termination "enriquetejedor won by resignation"]

1. e4 {[%clk 0:03:00.9]} 1... Nc6 {[%clk 0:02:52.7]} 2. Nf3 {[%clk 0:03:00.6]}
2... d6 {[%clk 0:02:51.2]} 3. d4 {[%clk 0:03:00.2]} 3... Nf6 {[%clk 0:02:49.8]}
4. Nc3 {[%clk 0:02:58.7]} 4... g6 {[%clk 0:02:44.5]} 5. Bb5 {[%clk 0:02:56.9]}
5... a6 {[%clk 0:02:37.1]} 6. Bxc6+ {[%clk 0:02:47.3]} 6... bxc6 {[%clk
0:02:38]} 7. h3 {[%clk 0:02:47.4]} 7... Bg7 {[%clk 0:02:37.1]} 8. O-O {[%clk
0:02:47.2]} 8... O-O {[%clk 0:02:37.2]} 9. Bf4 {[%clk 0:02:46.2]} 9... Rb8
{[%clk 0:02:35.9]} 10. Rb1 {[%clk 0:02:45.6]} 10... Nd7 {[%clk 0:02:30]} 11. Qd2
{[%clk 0:02:43.7]} 11... c5 {[%clk 0:02:23.6]} 12. Bh6 {[%clk 0:02:34.4]} 12...
cxd4 {[%clk 0:02:15.6]} 13. Bxg7 {[%clk 0:02:34]} 13... Kxg7 {[%clk 0:02:09.9]}
14. Nxd4 {[%clk 0:02:31.3]} 14... Bb7 {[%clk 0:02:06.5]} 15. f4 {[%clk
0:02:23.9]} 15... e5 {[%clk 0:02:02.4]} 16. Nf3 {[%clk 0:02:14.1]} 16... f6
{[%clk 0:01:56.5]} 17. f5 {[%clk 0:02:08.5]} 17... Nc5 {[%clk 0:01:55.5]} 18.
fxg6 {[%clk 0:01:48.6]} 18... hxg6 {[%clk 0:01:52.8]} 19. Qe3 {[%clk 0:01:43.6]}
19... Ne6 {[%clk 0:01:40.3]} 20. Ne2 {[%clk 0:01:40.2]} 20... Qe7 {[%clk
0:01:25.7]} 21. Rbd1 {[%clk 0:01:38.1]} 21... Rh8 {[%clk 0:01:20.7]} 22. b3
{[%clk 0:01:33.9]} 22... Qd7 {[%clk 0:01:08.6]} 23. c4 {[%clk 0:01:19.5]} 23...
c5 {[%clk 0:01:06.9]} 24. Nh2 {[%clk 0:01:09.3]} 24... Nd4 {[%clk 0:00:57.9]}
25. Ng4 {[%clk 0:01:05.3]} 25... Rbf8 {[%clk 0:00:55.6]} 26. Nxd4 {[%clk
0:00:57.6]} 26... cxd4 {[%clk 0:00:49]} 27. Qd3 {[%clk 0:00:41.9]} 27... f5
{[%clk 0:00:46.5]} 28. Nf2 {[%clk 0:00:39.8]} 28... Rh4 {[%clk 0:00:40.8]} 29.
Rde1 {[%clk 0:00:39]} 29... fxe4 {[%clk 0:00:30.9]} 30. Nxe4 {[%clk 0:00:32.8]}
30... Rxf1+ {[%clk 0:00:30.4]} 31. Kxf1 {[%clk 0:00:33.7]} 31... Bxe4 {[%clk
0:00:26.1]} 32. Qg3 {[%clk 0:00:30.2]} 32... Rf4+ {[%clk 0:00:24]} 33. Kg1
{[%clk 0:00:30.3]} 33... d3 {[%clk 0:00:22.3]} 34. h4 {[%clk 0:00:25.9]} 34...
d2 {[%clk 0:00:22]} 35. Rd1 {[%clk 0:00:25.6]} 35... Rg4 {[%clk 0:00:22.6]} 36.
Qe3 {[%clk 0:00:25.4]} 36... Rxg2+ {[%clk 0:00:22.5]} 37. Kf1 {[%clk 0:00:25.7]}
37... Qf5+ {[%clk 0:00:22.7]} 0-1

[Event "*** Titled Tuesday Blitz"]
[Site "Chess.com"]
[Date "2021.03.30"]
[Round "3"]
[White "IsaacWiebe"]
[Black "Khnykin_Nikolay"]
[Result "1-0"]
[WhiteElo "2305"]
[BlackElo "2037"]
[TimeControl "180+1"]
[EndTime "10:28:03 PDT"]
[Termination "IsaacWiebe won on time"]

1. Nf3 {[%clk 0:03:00.9]} 1... c5 {[%clk 0:02:54.8]} 2. e3 {[%clk 0:03:00.7]}
2... e6 {[%clk 0:02:53.6]} 3. d4 {[%clk 0:02:59.6]} 3... cxd4 {[%clk 0:02:52.4]}
4. exd4 {[%clk 0:03:00.5]} 4... Nf6 {[%clk 0:02:51.1]} 5. Bd3 {[%clk 0:03:00.3]}
5... Be7 {[%clk 0:02:50]} 6. O-O {[%clk 0:03:00.5]} 6... O-O {[%clk 0:02:49.9]}
7. Re1 {[%clk 0:03:00.6]} 7... Nc6 {[%clk 0:02:49.7]} 8. c3 {[%clk 0:03:00.3]}
8... d5 {[%clk 0:02:49.2]} 9. h3 {[%clk 0:02:57.9]} 9... a6 {[%clk 0:02:48.8]}
10. Bf4 {[%clk 0:02:54.7]} 10... b5 {[%clk 0:02:46.3]} 11. Nbd2 {[%clk
0:02:48.4]} 11... Bb7 {[%clk 0:02:45.1]} 12. Ne5 {[%clk 0:02:40]} 12... Bd6
{[%clk 0:02:41.3]} 13. Ndf3 {[%clk 0:02:35.8]} 13... Ne4 {[%clk 0:02:08.7]} 14.
Bc2 {[%clk 0:02:09.3]} 14... f6 {[%clk 0:01:48.5]} 15. Nxc6 {[%clk 0:02:08.2]}
15... Bxc6 {[%clk 0:01:46.5]} 16. Bxd6 {[%clk 0:02:06.8]} 16... Qxd6 {[%clk
0:01:45.6]} 17. Qd3 {[%clk 0:02:06.7]} 17... f5 {[%clk 0:01:37]} 18. Ne5 {[%clk
0:02:00.5]} 18... Rf6 {[%clk 0:01:23.5]} 19. f3 {[%clk 0:01:47.9]} 19... Ng5
{[%clk 0:01:19]} 20. Qe3 {[%clk 0:01:33.3]} 20... Nf7 {[%clk 0:01:08.8]} 21. Re2
{[%clk 0:01:20.8]} 21... Re8 {[%clk 0:01:04.1]} 22. Rae1 {[%clk 0:01:18.9]}
22... Nd8 {[%clk 0:00:22.6]} 23. g4 {[%clk 0:01:09.3]} 23... fxg4 {[%clk
0:00:18]} 24. hxg4 {[%clk 0:01:09.5]} 24... Ref8 {[%clk 0:00:17.2]} 25. Kg2
{[%clk 0:01:05.5]} 25... Bb7 {[%clk 0:00:16.5]} 26. Rh1 {[%clk 0:01:04.6]} 26...
g6 {[%clk 0:00:13.4]} 27. Kg1 {[%clk 0:01:00.5]} 27... Nc6 {[%clk 0:00:12.6]}
28. Reh2 {[%clk 0:00:58.4]} 28... Qc7 {[%clk 0:00:07.2]} 29. Rxh7 {[%clk
0:00:31.7]} 29... Qxh7 {[%clk 0:00:03.5]} 30. Rxh7 {[%clk 0:00:32.6]} 30... Kxh7
{[%clk 0:00:03.5]} 31. Nd7 {[%clk 0:00:33]} 31... Rxf3 {[%clk 0:00:02.2]} 32.
Nxf8+ {[%clk 0:00:33.3]} 32... Rxf8 {[%clk 0:00:01.2]} 33. Qxe6 {[%clk
0:00:33.5]} 1-0

[Event "*** Titled Tuesday Blitz"]
[Site "Chess.com"]
[Date "2021.03.30"]
[Round "3"]
[White "katchesskat"]
[Black "RzayevB"]
[Result "0-1"]
[WhiteElo "2311"]
[BlackElo "2536"]
[TimeControl "180+1"]
[EndTime "10:28:06 PDT"]
[Termination "RzayevB won by resignation"]

1. c4 {[%clk 0:03:00.9]} 1... e5 {[%clk 0:02:59.6]} 2. e3 {[%clk 0:02:59.6]}
2... Nf6 {[%clk 0:02:59.9]} 3. a3 {[%clk 0:02:59.8]} 3... d5 {[%clk 0:03:00.2]}
4. cxd5 {[%clk 0:02:59.8]} 4... Nxd5 {[%clk 0:03:01.1]} 5. Qc2 {[%clk
0:02:58.7]} 5... Be7 {[%clk 0:03:00.9]} 6. Nf3 {[%clk 0:02:58.3]} 6... f6 {[%clk
0:02:57.4]} 7. Bc4 {[%clk 0:02:55.2]} 7... Be6 {[%clk 0:02:51.6]} 8. Nc3 {[%clk
0:02:33.4]} 8... c6 {[%clk 0:02:40.9]} 9. b4 {[%clk 0:02:20.9]} 9... Nxb4 {[%clk
0:02:25.2]} 10. axb4 {[%clk 0:02:07.7]} 10... Bxc4 {[%clk 0:02:24.3]} 11. d4
{[%clk 0:02:07.9]} 11... exd4 {[%clk 0:02:22.1]} 12. Nxd4 {[%clk 0:02:03.1]}
12... O-O {[%clk 0:02:21.7]} 13. Na2 {[%clk 0:01:41.7]} 13... Qd5 {[%clk
0:02:01.5]} 14. Bd2 {[%clk 0:01:17.4]} 14... b5 {[%clk 0:01:51.2]} 15. f3 {[%clk
0:01:15.9]} 15... Kh8 {[%clk 0:01:43.9]} 16. Kf2 {[%clk 0:01:15.3]} 16... Nd7
{[%clk 0:01:40.1]} 17. h4 {[%clk 0:01:15.3]} 17... Ne5 {[%clk 0:01:39.8]} 18.
Nc1 {[%clk 0:01:13.7]} 18... c5 {[%clk 0:01:36.6]} 19. Nf5 {[%clk 0:01:05.9]}
19... Bd8 {[%clk 0:01:14.8]} 20. e4 {[%clk 0:00:54.9]} 20... Qc6 {[%clk
0:01:11.3]} 21. bxc5 {[%clk 0:00:37.1]} 21... Qxc5+ {[%clk 0:01:12.2]} 22. Be3
{[%clk 0:00:37.2]} 22... Qc6 {[%clk 0:01:10.3]} 23. h5 {[%clk 0:00:29.1]} 23...
Bb6 {[%clk 0:01:04.6]} 24. Nd4 {[%clk 0:00:12.3]} 24... Qd7 {[%clk 0:00:57.3]}
25. Rd1 {[%clk 0:00:11.1]} 25... Rfd8 {[%clk 0:00:48.8]} 26. Ncb3 {[%clk
0:00:11.1]} 26... Rac8 {[%clk 0:00:48.3]} 27. Qb2 {[%clk 0:00:10.6]} 27... Nd3+
{[%clk 0:00:45.4]} 28. Rxd3 {[%clk 0:00:10.5]} 28... Bxd3 {[%clk 0:00:46.3]} 29.
h6 {[%clk 0:00:10.9]} 29... gxh6 {[%clk 0:00:40]} 30. Rd1 {[%clk 0:00:10.9]}
30... Bc2 {[%clk 0:00:31.7]} 31. Nxc2 {[%clk 0:00:09.1]} 31... Rxc2+ {[%clk
0:00:31]} 32. Qxc2 {[%clk 0:00:08.2]} 32... Qxd1 {[%clk 0:00:31.9]} 33. Qxd1
{[%clk 0:00:05.4]} 33... Rxd1 {[%clk 0:00:30.2]} 34. Bxb6 {[%clk 0:00:04.7]}
34... axb6 {[%clk 0:00:31.1]} 35. Nd4 {[%clk 0:00:04.8]} 35... Rxd4 {[%clk
0:00:31]} 0-1

[Event "*** Titled Tuesday Blitz"]
[Site "Chess.com"]
[Date "2021.03.30"]
[Round "3"]
[White "Rital44"]
[Black "As0nchess"]
[Result "0-1"]
[WhiteElo "2428"]
[BlackElo "2626"]
[TimeControl "180+1"]
[EndTime "10:28:07 PDT"]
[Termination "As0nchess won by resignation"]

1. e4 {[%clk 0:03:00.3]} 1... c5 {[%clk 0:02:58.9]} 2. Nf3 {[%clk 0:02:51.2]}
2... d6 {[%clk 0:02:59.2]} 3. d4 {[%clk 0:02:42.5]} 3... cxd4 {[%clk 0:03:00.1]}
4. Nxd4 {[%clk 0:02:40.8]} 4... Nf6 {[%clk 0:03:00.2]} 5. Nc3 {[%clk 0:02:40.2]}
5... Nc6 {[%clk 0:03:00.5]} 6. Bg5 {[%clk 0:02:37.1]} 6... e6 {[%clk 0:03:00.4]}
7. Qd2 {[%clk 0:02:36.2]} 7... a6 {[%clk 0:03:00.6]} 8. O-O-O {[%clk 0:02:31]}
8... h6 {[%clk 0:03:00.8]} 9. Nxc6 {[%clk 0:02:11.3]} 9... bxc6 {[%clk
0:03:01.7]} 10. Bh4 {[%clk 0:02:11.1]} 10... Bb7 {[%clk 0:02:23.1]} 11. f4
{[%clk 0:01:50]} 11... Qc7 {[%clk 0:02:14.1]} 12. Bc4 {[%clk 0:01:40.9]} 12...
d5 {[%clk 0:02:11]} 13. Bb3 {[%clk 0:01:39.2]} 13... Bb4 {[%clk 0:02:04.8]} 14.
Bxf6 {[%clk 0:01:37]} 14... gxf6 {[%clk 0:02:04.1]} 15. g3 {[%clk 0:01:35.2]}
15... O-O-O {[%clk 0:02:00.4]} 16. Qd4 {[%clk 0:01:33.9]} 16... Be7 {[%clk
0:01:56.7]} 17. exd5 {[%clk 0:01:30]} 17... cxd5 {[%clk 0:01:56]} 18. Rhe1
{[%clk 0:01:27.8]} 18... f5 {[%clk 0:01:50.2]} 19. Bxd5 {[%clk 0:01:07.3]} 19...
exd5 {[%clk 0:01:38.9]} 20. Na4 {[%clk 0:01:06.6]} 20... Kb8 {[%clk 0:01:26.7]}
21. Re3 {[%clk 0:01:04.2]} 21... Bd6 {[%clk 0:01:14.7]} 22. Rc3 {[%clk
0:01:02.6]} 22... Qa5 {[%clk 0:01:10.9]} 23. Rb3 {[%clk 0:00:54.1]} 23... Rhe8
{[%clk 0:01:04]} 24. c3 {[%clk 0:00:38.7]} 24... Re4 {[%clk 0:01:00.4]} 25. Qb6
{[%clk 0:00:37.9]} 25... Qxb6 {[%clk 0:00:58.7]} 26. Nxb6 {[%clk 0:00:38.8]}
26... Kc7 {[%clk 0:00:52.2]} 27. a4 {[%clk 0:00:32.5]} 27... Bc5 {[%clk
0:00:50.7]} 28. a5 {[%clk 0:00:32.1]} 28... Re2 {[%clk 0:00:48.7]} 29. Na4
{[%clk 0:00:27.5]} 29... Be3+ {[%clk 0:00:47.7]} 30. Kb1 {[%clk 0:00:27.4]}
30... Rxh2 {[%clk 0:00:47.6]} 31. c4 {[%clk 0:00:26.6]} 31... d4 {[%clk
0:00:46.7]} 32. Nc5 {[%clk 0:00:25.8]} 32... Be4+ {[%clk 0:00:45.3]} 33. Ka2
{[%clk 0:00:24.1]} 33... Bc2 {[%clk 0:00:44]} 34. Nxa6+ {[%clk 0:00:21.1]} 34...
Kd7 {[%clk 0:00:42.3]} 35. Rxe3 {[%clk 0:00:13.1]} 35... Bxd1 {[%clk 0:00:41.3]}
36. Rd3 {[%clk 0:00:14]} 36... Be2 {[%clk 0:00:31.9]} 0-1

[Event "*** Titled Tuesday Blitz"]
[Site "Chess.com"]
[Date "2021.03.30"]
[Round "3"]
[White "Piotrek1979"]
[Black "Harry_Rakkel"]
[Result "0-1"]
[WhiteElo "2325"]
[BlackElo "2606"]
[TimeControl "180+1"]
[EndTime "10:28:07 PDT"]
[Termination "Harry_Rakkel won by resignation"]

1. Nf3 {[%clk 0:03:00.9]} 1... Nf6 {[%clk 0:02:58.4]} 2. g3 {[%clk 0:02:59.6]}
2... d5 {[%clk 0:02:58.2]} 3. b3 {[%clk 0:02:59.5]} 3... Bf5 {[%clk 0:02:54.9]}
4. Bb2 {[%clk 0:02:59.6]} 4... e6 {[%clk 0:02:54.6]} 5. Bg2 {[%clk 0:02:59.5]}
5... h6 {[%clk 0:02:54.6]} 6. O-O {[%clk 0:02:59.2]} 6... Be7 {[%clk 0:02:54.7]}
7. d3 {[%clk 0:02:59]} 7... O-O {[%clk 0:02:54.5]} 8. Nbd2 {[%clk 0:02:59.6]}
8... Bh7 {[%clk 0:02:54.4]} 9. Ne5 {[%clk 0:02:48.6]} 9... a5 {[%clk 0:02:52.2]}
10. a3 {[%clk 0:02:47]} 10... c5 {[%clk 0:02:43.1]} 11. c4 {[%clk 0:02:45.5]}
11... Nc6 {[%clk 0:02:32.7]} 12. Nxc6 {[%clk 0:02:32.1]} 12... bxc6 {[%clk
0:02:32.1]} 13. Rb1 {[%clk 0:02:28.3]} 13... Qb6 {[%clk 0:02:07.6]} 14. Nf3
{[%clk 0:02:25.3]} 14... d4 {[%clk 0:02:01]} 15. Bc1 {[%clk 0:01:56.7]} 15...
Nd7 {[%clk 0:01:54.6]} 16. Bd2 {[%clk 0:01:49]} 16... e5 {[%clk 0:01:49.7]} 17.
e4 {[%clk 0:01:01.3]} 17... Rfb8 {[%clk 0:01:17.2]} 18. Nh4 {[%clk 0:00:58]}
18... Rb7 {[%clk 0:01:13.2]} 19. Nf5 {[%clk 0:00:50.2]} 19... Bf8 {[%clk
0:01:10.6]} 20. f4 {[%clk 0:00:44.2]} 20... Kh8 {[%clk 0:01:03.3]} 21. Bh3
{[%clk 0:00:34.6]} 21... Qd8 {[%clk 0:01:02.4]} 22. Qc2 {[%clk 0:00:19.9]} 22...
g6 {[%clk 0:00:55.2]} 23. Nh4 {[%clk 0:00:18.5]} 23... Bg7 {[%clk 0:00:49.7]}
24. Nf3 {[%clk 0:00:17.2]} 24... exf4 {[%clk 0:00:48.3]} 25. Bxf4 {[%clk
0:00:16]} 25... g5 {[%clk 0:00:43.5]} 26. Bd6 {[%clk 0:00:12.2]} 26... Nf6
{[%clk 0:00:43.5]} 27. Bxc5 {[%clk 0:00:10.7]} 27... g4 {[%clk 0:00:43.7]} 28.
Ne5 {[%clk 0:00:08.3]} 28... gxh3 {[%clk 0:00:41.5]} 29. Rf2 {[%clk 0:00:06.2]}
29... Qe8 {[%clk 0:00:39.9]} 30. Bd6 {[%clk 0:00:03.7]} 30... Rd8 {[%clk
0:00:38.8]} 31. c5 {[%clk 0:00:02.8]} 31... Rxd6 {[%clk 0:00:38]} 32. cxd6
{[%clk 0:00:03.7]} 32... Qxe5 {[%clk 0:00:38.1]} 33. Rbf1 {[%clk 0:00:04.6]}
33... Bg6 {[%clk 0:00:35.5]} 34. d7 {[%clk 0:00:04]} 34... Rxd7 {[%clk 0:00:35]}
35. Qxc6 {[%clk 0:00:04.5]} 35... Rc7 {[%clk 0:00:34.9]} 36. Qa8+ {[%clk
0:00:04.1]} 36... Kh7 {[%clk 0:00:35.1]} 37. Rf5 {[%clk 0:00:02.9]} 37... Bxf5
{[%clk 0:00:34.7]} 38. Rxf5 {[%clk 0:00:03.8]} 38... Qe7 {[%clk 0:00:34.2]} 0-1

[Event "*** Titled Tuesday Blitz"]
[Site "Chess.com"]
[Date "2021.03.30"]
[Round "3"]
[White "karwowskikacper"]
[Black "kflorian98"]
[Result "0-1"]
[WhiteElo "2444"]
[BlackElo "2691"]
[TimeControl "180+1"]
[EndTime "10:28:10 PDT"]
[Termination "kflorian98 won on time"]

1. e4 {[%clk 0:03:00.9]} 1... d5 {[%clk 0:02:58.8]} 2. exd5 {[%clk 0:03:00.6]}
2... Qxd5 {[%clk 0:02:59.7]} 3. Nc3 {[%clk 0:03:00.4]} 3... Qe5+ {[%clk
0:03:00]} 4. Be2 {[%clk 0:02:54.3]} 4... c6 {[%clk 0:02:59.2]} 5. Nf3 {[%clk
0:02:53.5]} 5... Qc7 {[%clk 0:02:59.5]} 6. d4 {[%clk 0:02:53.9]} 6... Nf6 {[%clk
0:02:59.4]} 7. O-O {[%clk 0:02:54.2]} 7... Bg4 {[%clk 0:02:56.8]} 8. h3 {[%clk
0:02:52.6]} 8... Bh5 {[%clk 0:02:54.8]} 9. Ne5 {[%clk 0:02:52.5]} 9... Bxe2
{[%clk 0:02:47.6]} 10. Qxe2 {[%clk 0:02:53.4]} 10... e6 {[%clk 0:02:47.4]} 11.
Bf4 {[%clk 0:02:52.3]} 11... Qc8 {[%clk 0:02:46.7]} 12. Nc4 {[%clk 0:02:27.4]}
12... Qd8 {[%clk 0:02:40.6]} 13. Bxb8 {[%clk 0:02:14.8]} 13... Rxb8 {[%clk
0:02:39.1]} 14. Rad1 {[%clk 0:02:15.7]} 14... Be7 {[%clk 0:02:38.7]} 15. Ne4
{[%clk 0:02:03.4]} 15... Nxe4 {[%clk 0:02:31.7]} 16. Qxe4 {[%clk 0:02:04.3]}
16... O-O {[%clk 0:02:31.8]} 17. c3 {[%clk 0:02:01.3]} 17... Qd5 {[%clk
0:02:30.6]} 18. Qd3 {[%clk 0:01:26.2]} 18... Rfd8 {[%clk 0:02:28.2]} 19. b3
{[%clk 0:01:23.6]} 19... g6 {[%clk 0:02:27.3]} 20. Ne3 {[%clk 0:01:22.2]} 20...
Qa5 {[%clk 0:02:24.9]} 21. Qc2 {[%clk 0:01:19.4]} 21... Rbc8 {[%clk 0:02:21]}
22. Rfe1 {[%clk 0:01:17.9]} 22... Bf8 {[%clk 0:02:17.9]} 23. Nc4 {[%clk
0:01:14.4]} 23... Qc7 {[%clk 0:02:15.7]} 24. Re3 {[%clk 0:01:06.6]} 24... Bg7
{[%clk 0:02:03.7]} 25. Qe2 {[%clk 0:00:51.1]} 25... c5 {[%clk 0:01:57.1]} 26.
dxc5 {[%clk 0:00:46]} 26... Qxc5 {[%clk 0:01:48]} 27. Rxd8+ {[%clk 0:00:19.9]}
27... Rxd8 {[%clk 0:01:48.9]} 28. Nd2 {[%clk 0:00:19.9]} 28... Qa5 {[%clk
0:01:39]} 29. Ne4 {[%clk 0:00:16.9]} 29... Qd5 {[%clk 0:01:27.9]} 30. c4 {[%clk
0:00:15.8]} 30... Qd4 {[%clk 0:01:25.3]} 31. g3 {[%clk 0:00:11.4]} 31... h6
{[%clk 0:01:24]} 32. Nc3 {[%clk 0:00:07.8]} 32... a6 {[%clk 0:01:20.9]} 33. Kg2
{[%clk 0:00:03.9]} 33... Qd7 {[%clk 0:01:17.8]} 34. Ne4 {[%clk 0:00:03.3]} 34...
Qc6 {[%clk 0:01:16.3]} 35. f3 {[%clk 0:00:03.7]} 35... Qd7 {[%clk 0:01:12.2]}
36. Nf2 {[%clk 0:00:03.7]} 36... Bd4 {[%clk 0:01:06.7]} 37. Rd3 {[%clk
0:00:02.9]} 37... e5 {[%clk 0:01:07.3]} 38. Ne4 {[%clk 0:00:01.8]} 38... Kg7
{[%clk 0:01:07.8]} 39. Nc3 {[%clk 0:00:02.2]} 39... Qc6 {[%clk 0:01:05.3]} 40.
Nd5 {[%clk 0:00:03.1]} 40... b5 {[%clk 0:01:05.3]} 41. Ne3 {[%clk 0:00:01.9]}
41... Rc8 {[%clk 0:01:03.5]} 42. cxb5 {[%clk 0:00:02.1]} 42... axb5 {[%clk
0:01:04.4]} 43. Rd2 {[%clk 0:00:02.2]} 43... Qc1 {[%clk 0:01:01.4]} 44. Nc2
{[%clk 0:00:02.1]} 44... Bc3 {[%clk 0:00:53]} 45. Ne1 {[%clk 0:00:01.9]} 45...
Qxd2 {[%clk 0:00:52.5]} 0-1

[Event "*** Titled Tuesday Blitz"]
[Site "Chess.com"]
[Date "2021.03.30"]
[Round "3"]
[White "niki_2003"]
[Black "Godzillator"]
[Result "0-1"]
[WhiteElo "2043"]
[BlackElo "2307"]
[TimeControl "180+1"]
[EndTime "10:28:10 PDT"]
[Termination "Godzillator won by checkmate"]

1. e4 {[%clk 0:03:00.9]} 1... c6 {[%clk 0:02:59.9]} 2. d4 {[%clk 0:03:00.5]}
2... d5 {[%clk 0:03:00.2]} 3. exd5 {[%clk 0:03:00.1]} 3... cxd5 {[%clk
0:03:00.2]} 4. Nf3 {[%clk 0:02:59.8]} 4... Nc6 {[%clk 0:02:59.8]} 5. c4 {[%clk
0:02:59.5]} 5... Nf6 {[%clk 0:02:59.5]} 6. Nc3 {[%clk 0:02:57]} 6... e6 {[%clk
0:02:59]} 7. Bg5 {[%clk 0:02:52.9]} 7... Bb4 {[%clk 0:02:58.3]} 8. a3 {[%clk
0:02:49.7]} 8... Bxc3+ {[%clk 0:02:57.2]} 9. bxc3 {[%clk 0:02:49.3]} 9... Qa5
{[%clk 0:02:57.3]} 10. Qc2 {[%clk 0:02:25.3]} 10... Ne4 {[%clk 0:02:56.2]} 11.
Bd2 {[%clk 0:02:24.7]} 11... Nxd2 {[%clk 0:02:52.4]} 12. Nxd2 {[%clk 0:02:23.9]}
12... O-O {[%clk 0:02:51.4]} 13. Bd3 {[%clk 0:02:22.3]} 13... h6 {[%clk
0:02:50.9]} 14. O-O {[%clk 0:02:21.6]} 14... dxc4 {[%clk 0:02:46.7]} 15. Nxc4
{[%clk 0:02:19.8]} 15... Qc7 {[%clk 0:02:46.8]} 16. Rfe1 {[%clk 0:02:15.6]}
16... b6 {[%clk 0:02:46.4]} 17. Ne5 {[%clk 0:02:15.2]} 17... Bb7 {[%clk
0:02:44.5]} 18. Re3 {[%clk 0:02:11.5]} 18... Nxe5 {[%clk 0:02:39]} 19. Rxe5
{[%clk 0:02:11.1]} 19... Rac8 {[%clk 0:02:38.1]} 20. c4 {[%clk 0:02:08.1]} 20...
Rfd8 {[%clk 0:02:37.3]} 21. Rd1 {[%clk 0:01:47.6]} 21... Ba6 {[%clk 0:02:36.6]}
22. c5 {[%clk 0:01:42.2]} 22... Bxd3 {[%clk 0:02:34.2]} 23. Rxd3 {[%clk
0:01:41.4]} 23... bxc5 {[%clk 0:02:19.7]} 24. Rxc5 {[%clk 0:01:37.9]} 24... Qd7
{[%clk 0:02:19]} 25. Rxc8 {[%clk 0:01:36.2]} 25... Rxc8 {[%clk 0:02:18.7]} 26.
Qd2 {[%clk 0:01:36.3]} 26... Qd5 {[%clk 0:02:15.9]} 27. Rc3 {[%clk 0:01:32]}
27... Rd8 {[%clk 0:02:10.2]} 28. Rd3 {[%clk 0:01:30.1]} 28... e5 {[%clk
0:02:09.7]} 29. Qb4 {[%clk 0:01:11.1]} 29... Qe4 {[%clk 0:01:52.4]} 30. Re3
{[%clk 0:00:36.2]} 30... Qxd4 {[%clk 0:01:51.8]} 31. Qxd4 {[%clk 0:00:35.6]}
31... Rxd4 {[%clk 0:01:48.2]} 32. g3 {[%clk 0:00:35.7]} 32... f6 {[%clk
0:01:47.8]} 33. Kg2 {[%clk 0:00:35.8]} 33... Kf7 {[%clk 0:01:47]} 34. Kf3 {[%clk
0:00:36.3]} 34... Ra4 {[%clk 0:01:46.4]} 35. h4 {[%clk 0:00:35.4]} 35... h5
{[%clk 0:01:44.1]} 36. Rb3 {[%clk 0:00:30.7]} 36... Ke6 {[%clk 0:01:44.2]} 37.
Rc3 {[%clk 0:00:29.8]} 37... Kf5 {[%clk 0:01:44]} 38. Ke3 {[%clk 0:00:28.5]}
38... g5 {[%clk 0:01:42.8]} 39. hxg5 {[%clk 0:00:26.7]} 39... fxg5 {[%clk
0:01:42.9]} 40. Kd2 {[%clk 0:00:25.6]} 40... h4 {[%clk 0:01:42.2]} 41. Kc2
{[%clk 0:00:22.8]} 41... h3 {[%clk 0:01:41.6]} 42. Kb3 {[%clk 0:00:18.5]} 42...
Ra6 {[%clk 0:01:29.4]} 43. a4 {[%clk 0:00:16.7]} 43... h2 {[%clk 0:01:28.2]} 44.
Rc1 {[%clk 0:00:16]} 44... Rh6 {[%clk 0:01:28]} 45. Rh1 {[%clk 0:00:15.1]} 45...
Kg4 {[%clk 0:01:28.3]} 46. Kc3 {[%clk 0:00:13.4]} 46... Kf3 {[%clk 0:01:28.5]}
47. Kd2 {[%clk 0:00:13.4]} 47... Kg2 {[%clk 0:01:28.6]} 48. Re1 {[%clk
0:00:13.8]} 48... h1=Q {[%clk 0:01:28.2]} 49. Rxh1 {[%clk 0:00:13.5]} 49... Rxh1
{[%clk 0:01:28.3]} 50. Ke3 {[%clk 0:00:13.8]} 50... Ra1 {[%clk 0:01:26.9]} 51.
Ke4 {[%clk 0:00:13.9]} 51... Rxa4+ {[%clk 0:01:26.9]} 52. Kxe5 {[%clk
0:00:14.5]} 52... Kxf2 {[%clk 0:01:27.2]} 53. Kf5 {[%clk 0:00:14.8]} 53... Kxg3
{[%clk 0:01:27.3]} 54. Kxg5 {[%clk 0:00:15.3]} 54... Re4 {[%clk 0:01:26.5]} 55.
Kf6 {[%clk 0:00:15.7]} 55... a5 {[%clk 0:01:25.8]} 56. Kf7 {[%clk 0:00:16.6]}
56... a4 {[%clk 0:01:26]} 57. Kf8 {[%clk 0:00:16.4]} 57... a3 {[%clk 0:01:26.4]}
58. Kf7 {[%clk 0:00:16.4]} 58... a2 {[%clk 0:01:26.7]} 59. Kf6 {[%clk
0:00:16.7]} 59... a1=Q+ {[%clk 0:01:27]} 60. Kf7 {[%clk 0:00:16.9]} 60... Qf1+
{[%clk 0:01:26.4]} 61. Kg8 {[%clk 0:00:16.7]} 61... Rg4+ {[%clk 0:01:26]} 62.
Kh7 {[%clk 0:00:15.4]} 62... Qh3# {[%clk 0:01:26]} 0-1